{"text_format":"3","workbook":"xlsx","n_sheets":2,"sheets":["KAKO KORISTITI OVU RADNU SVESKU","DNEVNIK OCENA"],"not_rendered":{"defined_names":5},"read":"whole","date_system":"1900"}

{"sheet":"KAKO KORISTITI OVU RADNU SVESKU","index":0,"n_rows":10,"n_cols":2,"rows_kept":10}
[null,"UPUTSTVA"]
[null,"Koristite radnu svesku DNEVNIK OCENA da biste izračunavali ocene u slučajevima kada svaki zadatak nosi određeni broj bodova. "]
[null,"Uputstva: Obavezno sačuvajte rezervnu kopiju ocena."]
[null,"1. Unesite ime vaše škole, informacije o odeljenju, imena učenika i ID-ove učenika (opcionalno).  "]
[null,"2. Prilagodite tabelu sa ocenama i prosečnim ocenama tako da se podudaraju sa sistemom ocenjivanja koji obično koristite."]
[null,"3. Unesite imena zadataka ili testova počevši od ćelije G7, zajedno sa procentom vrednosti svakog (na primer, „Konačno“ i „50%“). "]
[null,"4. Unesite rezultate svakog učenika na svakom zadatku ili testu. Kolone „Rezultat“, „Slovna ocena“ i „a ocena“ izračunavaju se automatski, ali ako želite možete da ih zamenite. Uz takav način izračunavanja ocena, prosečna i konačna ocena nisu kompletne dok se ne unesu svi rezultati."]
[null,"Koristite komandu „Oblast za štampanje“ u meniju „Raspored na stranici“ ako želite da promenite oblast koja se štampa."]
[null," Rezultat, slovna ocena i a ocena nisu važeći dok se ne popuni 100% testova i zadataka. "]
[null,"Unesite svaki zadatak ili test i procenat njegovog učešća u ukupnoj oceni u ćelije od G7 do W8."]

{"sheet":"DNEVNIK OCENA","index":1,"n_rows":20,"n_cols":23,"rows_kept":20,"merged":[[5,1,5,5],[6,1,6,3],[6,4,6,5],[7,1,8,3],[7,4,7,5],[8,4,8,5],[15,1,15,5],[16,1,16,2],[17,1,17,2],[18,1,18,2],[19,1,19,2]]}
[null,"IME VAŠE ŠKOLE"]
[]
[{"$nulls":6},"Rezultat",{"v":0,"d":"0%"},{"v":0.6,"d":"60%"},{"v":0.63,"d":"63%"},{"v":0.67,"d":"67%"},{"v":0.7,"d":"70%"},{"v":0.73,"d":"73%"},{"v":0.77,"d":"77%"},{"v":0.8,"d":"80%"},{"v":0.83,"d":"83%"},{"v":0.87,"d":"87%"},{"v":0.9,"d":"90%"},{"v":0.93,"d":"93%"},{"v":0.97,"d":"97%"}]
[{"$nulls":6},"slovna ocena","F","D-","D","D+","C-","C","C+","B-","B","B+","A-","A","A+"]
[{"$nulls":6},"Prosečna ocena",0,0.67,1,1.33,1.67,2,2.33,2.67,3,3.33,3.67,4,4]
[null,"Ime nastavnika"]
[null,"Razred/projekat",null,null,"Ime zadatka ili testa"]
[null,"Godina/semestar/kvartal",null,null,"Procenat (ukupno treba da iznosi 100%)"]
[{"$nulls":4},{"$f":"\"Ukupni procenat: \"&SUM(G8:W8)*100&\"%\"","v":"Ukupni procenat: 0%"}]
[null,"Ime učenika","ID učenika","Rezultat","slovna ocena","Prosečna ocena","Kolona6","Kolona7","Kolona8","Kolona9","Kolona10","Kolona11","Kolona12","Kolona13","Kolona14","Kolona15","Kolona16","Kolona17","Kolona18","Kolona19","Kolona20","Kolona21","Kolona22"]
[{"$nulls":3},{"$f":"(IF(SUM(Ocene[[#This Row],[Kolona6]:[Kolona22]]),ROUND(SUMPRODUCT($G$8:$W$8,Ocene[[#This Row],[Kolona6]:[Kolona22]]),2),\"\"))","v":""},{"$f":"IF(Ocene[[#This Row],[Rezultat]]<>\"\",HLOOKUP(Ocene[[#This Row],[Rezultat]],TabelaOcena,2),\"\")","v":""},{"$f":"IF(Ocene[[#This Row],[Rezultat]]<>\"\",HLOOKUP(Ocene[[#This Row],[Rezultat]],TabelaOcena,3),\"\")","v":""}]
[{"$nulls":3},{"$f":"(IF(SUM(Ocene[[#This Row],[Kolona6]:[Kolona22]]),ROUND(SUMPRODUCT($G$8:$W$8,Ocene[[#This Row],[Kolona6]:[Kolona22]]),2),\"\"))","v":""},{"$f":"IF(Ocene[[#This Row],[Rezultat]]<>\"\",HLOOKUP(Ocene[[#This Row],[Rezultat]],TabelaOcena,2),\"\")","v":""},{"$f":"IF(Ocene[[#This Row],[Rezultat]]<>\"\",HLOOKUP(Ocene[[#This Row],[Rezultat]],TabelaOcena,3),\"\")","v":""}]
[{"$nulls":3},{"$f":"(IF(SUM(Ocene[[#This Row],[Kolona6]:[Kolona22]]),ROUND(SUMPRODUCT($G$8:$W$8,Ocene[[#This Row],[Kolona6]:[Kolona22]]),2),\"\"))","v":""},{"$f":"IF(Ocene[[#This Row],[Rezultat]]<>\"\",HLOOKUP(Ocene[[#This Row],[Rezultat]],TabelaOcena,2),\"\")","v":""},{"$f":"IF(Ocene[[#This Row],[Rezultat]]<>\"\",HLOOKUP(Ocene[[#This Row],[Rezultat]],TabelaOcena,3),\"\")","v":""}]
[{"$nulls":3},{"$f":"(IF(SUM(Ocene[[#This Row],[Kolona6]:[Kolona22]]),ROUND(SUMPRODUCT($G$8:$W$8,Ocene[[#This Row],[Kolona6]:[Kolona22]]),2),\"\"))","v":""},{"$f":"IF(Ocene[[#This Row],[Rezultat]]<>\"\",HLOOKUP(Ocene[[#This Row],[Rezultat]],TabelaOcena,2),\"\")","v":""},{"$f":"IF(Ocene[[#This Row],[Rezultat]]<>\"\",HLOOKUP(Ocene[[#This Row],[Rezultat]],TabelaOcena,3),\"\")","v":""}]
[{"$nulls":3},{"$f":"(IF(SUM(Ocene[[#This Row],[Kolona6]:[Kolona22]]),ROUND(SUMPRODUCT($G$8:$W$8,Ocene[[#This Row],[Kolona6]:[Kolona22]]),2),\"\"))","v":""},{"$f":"IF(Ocene[[#This Row],[Rezultat]]<>\"\",HLOOKUP(Ocene[[#This Row],[Rezultat]],TabelaOcena,2),\"\")","v":""},{"$f":"IF(Ocene[[#This Row],[Rezultat]]<>\"\",HLOOKUP(Ocene[[#This Row],[Rezultat]],TabelaOcena,3),\"\")","v":""}]
[]
[null,"Rezime odeljenja",null,"Rezultat","slovna ocena","Prosečna ocena","","","","","","","","","","",""]
[null," Prosečna ocena",null,{"$f":"IFERROR(AVERAGE(Ocene[[#All],[Rezultat]]),0)","v":{"v":0,"d":"0.0%"}},{"$f":"IFERROR(HLOOKUP(D18,TabelaOcena,2),\"\")","v":"F"},{"$f":"IFERROR(AVERAGE(Ocene[[#All],[Prosečna ocena]]),0)","v":0},"","","","","","","","","","","","","","","","",""]
[null," Najbolji rezultat",null,{"$f":"IFERROR(MAX(Ocene[[#All],[Rezultat]]),0)","v":{"v":0,"d":"0.0%"}},{"$f":"IFERROR(HLOOKUP(D19,TabelaOcena,2),\"\")","v":"F"},{"$f":"IFERROR(MAX(Ocene[[#All],[Prosečna ocena]]),0)","v":0},"","","","","","","","","","","","","","","","",""]
[null," Najniži rezultat",null,{"$f":"IFERROR(MIN(Ocene[[#All],[Rezultat]]),0)","v":{"v":0,"d":"0.0%"}},{"$f":"IFERROR(HLOOKUP(D20,TabelaOcena,2),\"\")","v":"F"},{"$f":"IFERROR(MIN(Ocene[[#All],[Prosečna ocena]]),0)","v":0},"","","","","","","","","","","","","","","","",""]